[Event "December 12 Late 2023"]
[Site "https://www.chess.com"]
[Date "2023.12.12"]
[Round "1"]
[White "Grabinsky, Aaron"]
[Black "Disconzi da Silva, Rodrigo"]
[Result "1/2-1/2"]
[Board "33"]
[TimeControl "180+1"]
[WhiteFideId "2087090"]
[BlackFideId "2100991"]
[WhiteElo "2900"]
[BlackElo "2467"]
[WhiteTeam "USA"]
[BlackTeam "BRA"]
[WhiteClock "0:00:17"]
[BlackClock "0:00:07"]

1. e4 {[%clk 0:03:00]}  c5 {[%clk 0:02:59]} 2. Nc3 {[%clk 0:03:00]}  a6 {[%clk 0:02:59]} 3. g3 {[%clk 0:03:01]}  b5 {[%clk 0:02:59]} 4. Bg2 {[%clk 0:03:01]}  Bb7 {[%clk 0:03:00]} 5. d3 {[%clk 0:03:01]}  e6 {[%clk 0:03:00]} 6. f4 {[%clk 0:03:02]}  d5 {[%clk 0:02:58]} 7. Qe2 {[%clk 0:03:01]}  b4 {[%clk 0:02:56]} 8. Nb1 {[%clk 0:02:57]}  Be7 {[%clk 0:02:54]} 9. Nf3 {[%clk 0:02:55]}  Nd7 {[%clk 0:02:54]} 10. O-O {[%clk 0:02:53]}  Qb6 {[%clk 0:02:48]} 11. Kh1 {[%clk 0:02:52]}  dxe4 {[%clk 0:02:48]} 12. dxe4 {[%clk 0:02:52]}  Ngf6 {[%clk 0:02:48]} 13. e5 {[%clk 0:02:49]}  Nd5 {[%clk 0:02:31]} 14. Nbd2 {[%clk 0:02:49]}  Qc7 {[%clk 0:02:28]} 15. Nc4 {[%clk 0:02:48]}  O-O {[%clk 0:02:27]} 16. a4 {[%clk 0:02:47]}  a5 {[%clk 0:02:26]} 17. Bd2 {[%clk 0:02:41]}  Ba6 {[%clk 0:02:26]} 18. Be1 {[%clk 0:02:24]}  N7b6 {[%clk 0:02:20]} 19. Nfd2 {[%clk 0:02:21]}  Rad8 {[%clk 0:02:18]} 20. Bf2 {[%clk 0:02:21]}  Nxc4 {[%clk 0:02:16]} 21. Nxc4 {[%clk 0:02:20]}  Nb6 {[%clk 0:02:16]} 22. b3 {[%clk 0:02:20]}  Nxc4 {[%clk 0:02:00]} 23. bxc4 {[%clk 0:02:20]}  Rd7 {[%clk 0:01:57]} 24. Be4 {[%clk 0:02:16]}  Rfd8 {[%clk 0:01:56]} 25. Bd3 {[%clk 0:02:16]}  g6 {[%clk 0:01:55]} 26. h3 {[%clk 0:02:15]}  Bb7+ {[%clk 0:01:55]} 27. Kh2 {[%clk 0:02:15]}  h5 {[%clk 0:01:54]} 28. Be3 {[%clk 0:02:12]}  Qc6 {[%clk 0:01:54]} 29. Rab1 {[%clk 0:02:01]}  Kg7 {[%clk 0:01:50]} 30. Qf2 {[%clk 0:01:54]}  Rxd3 {[%clk 0:01:40]} 31. cxd3 {[%clk 0:01:54]}  Rxd3 {[%clk 0:01:40]} 32. Rfe1 {[%clk 0:01:50]}  Qxa4 {[%clk 0:01:31]} 33. Ra1 {[%clk 0:01:50]}  Qb3 {[%clk 0:01:27]} 34. Rxa5 {[%clk 0:01:47]}  Qxc4 {[%clk 0:01:21]} 35. Bxc5 {[%clk 0:01:36]}  Bd8 {[%clk 0:00:59]} 36. Ra2 {[%clk 0:01:03]}  b3 {[%clk 0:00:59]} 37. Rae2 {[%clk 0:00:59]}  Qd5 {[%clk 0:00:52]} 38. Rg1 {[%clk 0:00:57]}  Ba5 {[%clk 0:00:50]} 39. Be7 {[%clk 0:00:49]}  Bc3 {[%clk 0:00:41]} 40. Bf6+ {[%clk 0:00:48]}  Kh7 {[%clk 0:00:35]} 41. f5 {[%clk 0:00:48]}  Rd1 {[%clk 0:00:25]} 42. fxg6+ {[%clk 0:00:44]}  fxg6 {[%clk 0:00:24]} 43. g4 {[%clk 0:00:33]}  Rxg1 {[%clk 0:00:18]} 44. Qxg1 {[%clk 0:00:34]}  Qf3 {[%clk 0:00:17]} 45. Rf2 {[%clk 0:00:31]}  Qe3 {[%clk 0:00:14]} 46. gxh5 {[%clk 0:00:30]}  Bxe5+ {[%clk 0:00:15]} 47. Bxe5 {[%clk 0:00:26]}  Qxe5+ {[%clk 0:00:15]} 48. Qg3 {[%clk 0:00:27]}  Qxg3+ {[%clk 0:00:15]} 49. Kxg3 {[%clk 0:00:28]}  Bd5 {[%clk 0:00:14]} 50. Kh4 {[%clk 0:00:24]}  gxh5 {[%clk 0:00:13]} 51. Kxh5 {[%clk 0:00:25]}  e5 {[%clk 0:00:13]} 52. Kg5 {[%clk 0:00:21]}  Be4 {[%clk 0:00:11]} 53. Rf7+ {[%clk 0:00:17]}  Kg8 {[%clk 0:00:11]} 54. Re7 {[%clk 0:00:15]}  b2 {[%clk 0:00:10]} 55. Re8+ {[%clk 0:00:13]}  Kf7 {[%clk 0:00:10]} 56. Rb8 {[%clk 0:00:14]}  b1=Q {[%clk 0:00:10]} 57. Rxb1 {[%clk 0:00:14]}  Bxb1 {[%clk 0:00:10]} 58. h4 {[%clk 0:00:14]}  Ke6 {[%clk 0:00:10]} 59. h5 {[%clk 0:00:14]}  Kd5 {[%clk 0:00:10]} 60. h6 {[%clk 0:00:15]}  Bh7 {[%clk 0:00:10]} 61. Kf6 {[%clk 0:00:15]}  e4 {[%clk 0:00:10]} 62. Kg7 {[%clk 0:00:16]}  Bf5 {[%clk 0:00:10]} 63. Kf6 {[%clk 0:00:16]}  Bh7 {[%clk 0:00:07]} 64. Kg7 {[%clk 0:00:17]}  Bf5 {[%clk 0:00:06]} 65. Kf6 {[%clk 0:00:17]}  Bh7 {[%clk 0:00:07]} 1/2-1/2

[Event "December 12 Late 2023"]
[Site "https://www.chess.com"]
[Date "2023.12.12"]
[Round "1"]
[White "Baches Garcia, Guillermo"]
[Black "Ashraf, Artin"]
[Result "0-1"]
[Board "34"]
[TimeControl "180+1"]
[WhiteFideId "2209764"]
[BlackFideId "22514805"]
[WhiteElo "2467"]
[BlackElo "2900"]
[WhiteTeam "ESP"]
[BlackTeam "IRI"]
[WhiteClock "0:00:00"]
[BlackClock "0:01:08"]

1. Nf3 {[%clk 0:03:00]}  Nf6 {[%clk 0:02:56]} 2. d4 {[%clk 0:03:01]}  e6 {[%clk 0:02:55]} 3. Bg5 {[%clk 0:03:01]}  d5 {[%clk 0:02:52]} 4. Nbd2 {[%clk 0:03:01]}  h6 {[%clk 0:02:52]} 5. Bh4 {[%clk 0:03:00]}  Bd6 {[%clk 0:02:52]} 6. e3 {[%clk 0:03:01]}  c5 {[%clk 0:02:52]} 7. c3 {[%clk 0:03:00]}  Nbd7 {[%clk 0:02:52]} 8. Bd3 {[%clk 0:03:00]}  O-O {[%clk 0:02:52]} 9. O-O {[%clk 0:02:53]}  Qc7 {[%clk 0:02:52]} 10. e4 {[%clk 0:02:47]}  dxe4 {[%clk 0:02:42]} 11. Nxe4 {[%clk 0:02:46]}  Nxe4 {[%clk 0:02:42]} 12. Bxe4 {[%clk 0:02:46]}  cxd4 {[%clk 0:02:43]} 13. Qxd4 {[%clk 0:02:44]}  Bc5 {[%clk 0:02:41]} 14. Qa4 {[%clk 0:02:36]}  Nf6 {[%clk 0:02:38]} 15. Bxf6 {[%clk 0:02:27]}  gxf6 {[%clk 0:02:39]} 16. Bc2 {[%clk 0:02:26]}  f5 {[%clk 0:02:38]} 17. Qh4 {[%clk 0:02:22]}  Kg7 {[%clk 0:02:37]} 18. Rae1 {[%clk 0:02:13]}  Bd7 {[%clk 0:02:36]} 19. Ne5 {[%clk 0:02:13]}  Bc6 {[%clk 0:02:35]} 20. Kh1 {[%clk 0:01:40]}  Rad8 {[%clk 0:02:31]} 21. Re2 {[%clk 0:01:28]}  Bd6 {[%clk 0:02:18]} 22. f4 {[%clk 0:01:16]}  Bb5 {[%clk 0:01:39]} 23. Re3 {[%clk 0:00:54]}  Qe7 {[%clk 0:01:26]} 24. Rg3+ {[%clk 0:00:37]}  Kh7 {[%clk 0:01:25]} 25. Qh5 {[%clk 0:00:17]}  Bxe5 {[%clk 0:01:18]} 26. Bxf5+ {[%clk 0:00:13]}  exf5 {[%clk 0:01:17]} 27. Qxf5+ {[%clk 0:00:12]}  Kh8 {[%clk 0:01:18]} 28. Qh5 {[%clk 0:00:00]}  Qf6 {[%clk 0:01:08]} 0-1

[Event "December 12 Late 2023"]
[Site "https://www.chess.com"]
[Date "2023.12.12"]
[Round "1"]
[White "Melkumyan, Hrant"]
[Black "Serra Canals, Oriol"]
[Result "1-0"]
[Board "35"]
[TimeControl "180+1"]
[WhiteFideId "13302485"]
[BlackFideId "22276084"]
[WhiteElo "2897"]
[BlackElo "2464"]
[WhiteTeam "ARM"]
[BlackTeam "ESP"]
[WhiteClock "0:01:15"]
[BlackClock "0:00:00"]

1. Nf3 {[%clk 0:03:00]}  e6 {[%clk 0:02:56]} 2. c4 {[%clk 0:02:57]}  d5 {[%clk 0:02:56]} 3. g3 {[%clk 0:02:58]}  Nf6 {[%clk 0:02:56]} 4. Bg2 {[%clk 0:02:58]}  Be7 {[%clk 0:02:56]} 5. O-O {[%clk 0:02:57]}  O-O {[%clk 0:02:57]} 6. b3 {[%clk 0:02:58]}  c5 {[%clk 0:02:56]} 7. cxd5 {[%clk 0:02:55]}  exd5 {[%clk 0:02:57]} 8. d4 {[%clk 0:02:55]}  Nc6 {[%clk 0:02:56]} 9. Bb2 {[%clk 0:02:56]}  Be6 {[%clk 0:02:45]} 10. dxc5 {[%clk 0:02:53]}  Bxc5 {[%clk 0:02:45]} 11. Nc3 {[%clk 0:02:53]}  a6 {[%clk 0:02:30]} 12. Rc1 {[%clk 0:02:53]}  Ba7 {[%clk 0:02:29]} 13. e3 {[%clk 0:02:48]}  h6 {[%clk 0:02:28]} 14. Ne2 {[%clk 0:02:48]}  Qe7 {[%clk 0:02:24]} 15. Ned4 {[%clk 0:02:46]}  Rac8 {[%clk 0:02:24]} 16. Qd3 {[%clk 0:02:37]}  Ne4 {[%clk 0:02:04]} 17. Nxc6 {[%clk 0:02:31]}  bxc6 {[%clk 0:01:43]} 18. Qxa6 {[%clk 0:02:31]}  c5 {[%clk 0:01:17]} 19. Rfd1 {[%clk 0:02:21]}  Rfd8 {[%clk 0:01:16]} 20. Qe2 {[%clk 0:02:10]}  Bg4 {[%clk 0:01:07]} 21. h3 {[%clk 0:02:09]}  Bh5 {[%clk 0:01:06]} 22. g4 {[%clk 0:02:09]}  Bg6 {[%clk 0:01:06]} 23. Nd2 {[%clk 0:01:58]}  Nf6 {[%clk 0:01:03]} 24. Nf1 {[%clk 0:01:50]}  Be4 {[%clk 0:01:02]} 25. Ng3 {[%clk 0:01:49]}  Bxg2 {[%clk 0:01:02]} 26. Kxg2 {[%clk 0:01:50]}  h5 {[%clk 0:00:56]} 27. gxh5 {[%clk 0:01:47]}  Bb8 {[%clk 0:00:49]} 28. Qf3 {[%clk 0:01:44]}  Bxg3 {[%clk 0:00:29]} 29. Bxf6 {[%clk 0:01:43]}  gxf6 {[%clk 0:00:26]} 30. fxg3 {[%clk 0:01:41]}  d4 {[%clk 0:00:21]} 31. e4 {[%clk 0:01:24]}  Ra8 {[%clk 0:00:13]} 32. Rc2 {[%clk 0:01:22]}  Qe5 {[%clk 0:00:12]} 33. Rf2 {[%clk 0:01:21]}  d3 {[%clk 0:00:10]} 34. Rxd3 {[%clk 0:01:19]}  Rxd3 {[%clk 0:00:10]} 35. Qxd3 {[%clk 0:01:20]}  Kh7 {[%clk 0:00:09]} 36. Qd5 {[%clk 0:01:18]}  Qe8 {[%clk 0:00:05]} 37. a4 {[%clk 0:01:14]}  Rd8 {[%clk 0:00:04]} 38. Qf5+ {[%clk 0:01:14]}  Kg8 {[%clk 0:00:00]} 39. h6 {[%clk 0:01:15]} 1-0

[Event "December 12 Late 2023"]
[Site "https://www.chess.com"]
[Date "2023.12.12"]
[Round "1"]
[White "Suarez Uriel, Adrian"]
[Black "Indjic, Aleksandar"]
[Result "0-1"]
[Board "36"]
[TimeControl "180+1"]
[WhiteFideId "22230874"]
[BlackFideId "911925"]
[WhiteElo "2462"]
[BlackElo "2896"]
[WhiteTeam "ESP"]
[BlackTeam "SRB"]
[WhiteClock "0:00:16"]
[BlackClock "0:00:14"]

1. e4 {[%clk 0:02:34]}  d6 {[%clk 0:03:00]} 2. d4 {[%clk 0:02:31]}  Nf6 {[%clk 0:03:01]} 3. Nc3 {[%clk 0:02:32]}  e5 {[%clk 0:03:01]} 4. Nf3 {[%clk 0:02:31]}  Nbd7 {[%clk 0:03:00]} 5. Bc4 {[%clk 0:02:31]}  Be7 {[%clk 0:02:59]} 6. a4 {[%clk 0:02:31]}  c6 {[%clk 0:02:58]} 7. O-O {[%clk 0:02:30]}  h6 {[%clk 0:02:58]} 8. Re1 {[%clk 0:02:30]}  Qc7 {[%clk 0:02:58]} 9. a5 {[%clk 0:02:29]}  g5 {[%clk 0:02:57]} 10. Bb3 {[%clk 0:01:51]}  Nf8 {[%clk 0:02:56]} 11. d5 {[%clk 0:01:49]}  a6 {[%clk 0:02:24]} 12. Be3 {[%clk 0:01:33]}  Ng6 {[%clk 0:02:22]} 13. Bb6 {[%clk 0:01:33]}  Qb8 {[%clk 0:02:22]} 14. Ba4 {[%clk 0:01:30]}  Bd7 {[%clk 0:02:22]} 15. Nd2 {[%clk 0:01:29]}  Kf8 {[%clk 0:02:11]} 16. Nc4 {[%clk 0:01:29]}  Kg7 {[%clk 0:02:09]} 17. Be3 {[%clk 0:01:22]}  Qc7 {[%clk 0:01:07]} 18. Nb6 {[%clk 0:01:20]}  Rad8 {[%clk 0:01:05]} 19. Nxd7 {[%clk 0:01:20]}  Rxd7 {[%clk 0:01:06]} 20. dxc6 {[%clk 0:01:17]}  bxc6 {[%clk 0:01:05]} 21. Bb6 {[%clk 0:01:16]}  Qb7 {[%clk 0:01:05]} 22. Ne2 {[%clk 0:01:10]}  Bd8 {[%clk 0:01:01]} 23. Bxd8 {[%clk 0:01:08]}  Rhxd8 {[%clk 0:00:59]} 24. Ng3 {[%clk 0:01:08]}  Nh4 {[%clk 0:01:00]} 25. Bb3 {[%clk 0:01:05]}  Re7 {[%clk 0:00:59]} 26. Qe2 {[%clk 0:00:57]}  d5 {[%clk 0:00:59]} 27. Rad1 {[%clk 0:00:54]}  Ree8 {[%clk 0:00:43]} 28. Rd2 {[%clk 0:00:45]}  Qb4 {[%clk 0:00:37]} 29. Ra1 {[%clk 0:00:30]}  dxe4 {[%clk 0:00:36]} 30. Rxd8 {[%clk 0:00:29]}  Rxd8 {[%clk 0:00:36]} 31. Ra4 {[%clk 0:00:29]}  Qb5 {[%clk 0:00:33]} 32. Qe1 {[%clk 0:00:20]}  c5 {[%clk 0:00:27]} 33. h3 {[%clk 0:00:19]}  Qb7 {[%clk 0:00:24]} 34. Rc4 {[%clk 0:00:19]}  e3 {[%clk 0:00:22]} 35. f3 {[%clk 0:00:16]}  Nxg2 {[%clk 0:00:17]} 36. Kxg2 {[%clk 0:00:16]}  Rd2+ {[%clk 0:00:17]} 37. Ne2 {[%clk 0:00:15]}  Nh5 {[%clk 0:00:16]} 38. Re4 {[%clk 0:00:15]}  Nf4+ {[%clk 0:00:16]} 39. Rxf4 {[%clk 0:00:14]}  gxf4 {[%clk 0:00:17]} 40. Kf1 {[%clk 0:00:14]}  Qxf3+ {[%clk 0:00:16]} 41. Kg1 {[%clk 0:00:14]}  Rxe2 {[%clk 0:00:16]} 42. Qf1 {[%clk 0:00:15]}  Qg3+ {[%clk 0:00:15]} 43. Kh1 {[%clk 0:00:16]}  Rh2# {[%clk 0:00:14]} 0-1

[Event "December 12 Late 2023"]
[Site "https://www.chess.com"]
[Date "2023.12.12"]
[Round "1"]
[White "Bazeev, German"]
[Black "Korpics, Zsolt"]
[Result "0-1"]
[Board "41"]
[TimeControl "180+1"]
[WhiteFideId "24119350"]
[BlackFideId "705241"]
[WhiteElo "2886"]
[BlackElo "2457"]
[WhiteTeam "RUS"]
[BlackTeam "HUN"]
[WhiteClock "0:01:57"]
[BlackClock "0:02:12"]

1. d4 {[%clk 0:02:50]}  Nf6 {[%clk 0:02:59]} 2. Nf3 {[%clk 0:02:50]}  e6 {[%clk 0:03:00]} 3. c4 {[%clk 0:02:50]}  b6 {[%clk 0:03:00]} 4. Nc3 {[%clk 0:02:50]}  Bb4 {[%clk 0:02:57]} 5. Bg5 {[%clk 0:02:50]}  Bb7 {[%clk 0:02:56]} 6. Nd2 {[%clk 0:02:49]}  h6 {[%clk 0:02:53]} 7. Bh4 {[%clk 0:02:49]}  O-O {[%clk 0:02:52]} 8. e4 {[%clk 0:02:45]}  g5 {[%clk 0:02:51]} 9. Bg3 {[%clk 0:02:45]}  Bxc3 {[%clk 0:02:51]} 10. bxc3 {[%clk 0:02:45]}  Nxe4 {[%clk 0:02:50]} 11. Nxe4 {[%clk 0:02:43]}  Bxe4 {[%clk 0:02:49]} 12. h4 {[%clk 0:02:44]}  Bg6 {[%clk 0:02:38]} 13. hxg5 {[%clk 0:02:43]}  hxg5 {[%clk 0:02:38]} 14. Bd3 {[%clk 0:02:28]}  f5 {[%clk 0:02:30]} 15. f4 {[%clk 0:02:03]}  g4 {[%clk 0:02:23]} 16. Bh4 {[%clk 0:02:03]}  Qe8 {[%clk 0:02:16]} 17. Bg5 {[%clk 0:01:57]}  Nc6 {[%clk 0:02:12]} 0-1

[Event "December 12 Late 2023"]
[Site "https://www.chess.com"]
[Date "2023.12.12"]
[Round "1"]
[White "Dmitrenko, Viktor"]
[Black "Szpar, Milosz"]
[Result "0-1"]
[Board "42"]
[TimeControl "180+1"]
[WhiteFideId "14110270"]
[BlackFideId "1184989"]
[WhiteElo "2456"]
[BlackElo "2885"]
[WhiteTeam "UKR"]
[BlackTeam "POL"]
[WhiteClock "0:00:01"]
[BlackClock "0:00:09"]

1. d4 {[%clk 0:03:00]}  d5 {[%clk 0:02:59]} 2. Nf3 {[%clk 0:03:00]}  Nf6 {[%clk 0:02:59]} 3. c4 {[%clk 0:03:00]}  e6 {[%clk 0:02:58]} 4. Nc3 {[%clk 0:02:59]}  dxc4 {[%clk 0:02:54]} 5. Bg5 {[%clk 0:02:46]}  a6 {[%clk 0:02:53]} 6. a4 {[%clk 0:02:29]}  Bb4 {[%clk 0:02:21]} 7. g3 {[%clk 0:02:23]}  Nbd7 {[%clk 0:02:17]} 8. Bg2 {[%clk 0:02:21]}  h6 {[%clk 0:02:17]} 9. Bf4 {[%clk 0:02:20]}  Nd5 {[%clk 0:02:12]} 10. Bd2 {[%clk 0:02:19]}  O-O {[%clk 0:02:10]} 11. O-O {[%clk 0:02:18]}  Be7 {[%clk 0:02:05]} 12. a5 {[%clk 0:02:02]}  Rb8 {[%clk 0:02:01]} 13. Ne5 {[%clk 0:01:43]}  Nxe5 {[%clk 0:01:59]} 14. dxe5 {[%clk 0:01:44]}  Nb4 {[%clk 0:01:52]} 15. h4 {[%clk 0:01:20]}  Bd7 {[%clk 0:01:51]} 16. Ne4 {[%clk 0:01:17]}  Bc6 {[%clk 0:01:48]} 17. Qc1 {[%clk 0:01:08]}  Kh7 {[%clk 0:01:28]} 18. Rd1 {[%clk 0:01:06]}  Qe8 {[%clk 0:01:22]} 19. Qxc4 {[%clk 0:00:59]}  Bd5 {[%clk 0:01:04]} 20. Qc3 {[%clk 0:00:45]}  Qc6 {[%clk 0:01:02]} 21. Qf3 {[%clk 0:00:35]}  Bxe4 {[%clk 0:00:17]} 22. Qxe4+ {[%clk 0:00:35]}  Qxe4 {[%clk 0:00:17]} 23. Bxe4+ {[%clk 0:00:36]}  Kg8 {[%clk 0:00:18]} 24. Rac1 {[%clk 0:00:35]}  c6 {[%clk 0:00:18]} 25. Be3 {[%clk 0:00:35]}  Nd5 {[%clk 0:00:18]} 26. Bc5 {[%clk 0:00:31]}  Bxc5 {[%clk 0:00:18]} 27. Rxc5 {[%clk 0:00:31]}  Rfd8 {[%clk 0:00:16]} 28. Rdc1 {[%clk 0:00:30]}  Nc7 {[%clk 0:00:16]} 29. b4 {[%clk 0:00:28]}  Rd4 {[%clk 0:00:15]} 30. R5c4 {[%clk 0:00:27]}  Rbd8 {[%clk 0:00:16]} 31. Bd3 {[%clk 0:00:26]}  R8d5 {[%clk 0:00:13]} 32. f4 {[%clk 0:00:25]}  Kf8 {[%clk 0:00:11]} 33. Kf2 {[%clk 0:00:25]}  Rd8 {[%clk 0:00:10]} 34. Ke3 {[%clk 0:00:24]}  R4d7 {[%clk 0:00:10]} 35. Kf3 {[%clk 0:00:24]}  Nb5 {[%clk 0:00:10]} 36. Ke3 {[%clk 0:00:22]}  Ke7 {[%clk 0:00:10]} 37. h5 {[%clk 0:00:20]}  Nc7 {[%clk 0:00:10]} 38. g4 {[%clk 0:00:20]}  Nd5+ {[%clk 0:00:10]} 39. Kf3 {[%clk 0:00:20]}  f6 {[%clk 0:00:10]} 40. exf6+ {[%clk 0:00:19]}  gxf6 {[%clk 0:00:11]} 41. Rg1 {[%clk 0:00:19]}  Rg8 {[%clk 0:00:11]} 42. Bg6 {[%clk 0:00:19]}  Nc7 {[%clk 0:00:10]} 43. Re4 {[%clk 0:00:17]}  Nb5 {[%clk 0:00:08]} 44. f5 {[%clk 0:00:15]}  Nd4+ {[%clk 0:00:08]} 45. Kg3 {[%clk 0:00:14]}  e5 {[%clk 0:00:08]} 46. Rg2 {[%clk 0:00:12]}  Nb5 {[%clk 0:00:08]} 47. e3 {[%clk 0:00:12]}  Rd1 {[%clk 0:00:05]} 48. Kf3 {[%clk 0:00:11]}  Nd6 {[%clk 0:00:05]} 49. Rc2 {[%clk 0:00:10]}  Nxe4 {[%clk 0:00:05]} 50. Kxe4 {[%clk 0:00:10]}  Rgd8 {[%clk 0:00:05]} 51. b5 {[%clk 0:00:10]}  axb5 {[%clk 0:00:05]} 52. a6 {[%clk 0:00:10]}  bxa6 {[%clk 0:00:06]} 53. Rxc6 {[%clk 0:00:10]}  R1d6 {[%clk 0:00:06]} 54. Rc7+ {[%clk 0:00:10]}  R6d7 {[%clk 0:00:07]} 55. Rc6 {[%clk 0:00:10]}  Rd6 {[%clk 0:00:07]} 56. Rc7+ {[%clk 0:00:10]}  R8d7 {[%clk 0:00:08]} 57. Rc8 {[%clk 0:00:10]}  Rb6 {[%clk 0:00:08]} 58. Re8+ {[%clk 0:00:10]}  Kd6 {[%clk 0:00:08]} 59. Rh8 {[%clk 0:00:10]}  b4 {[%clk 0:00:08]} 60. Rxh6 {[%clk 0:00:10]}  b3 {[%clk 0:00:09]} 61. Bf7 {[%clk 0:00:08]}  Rxf7 {[%clk 0:00:08]} 62. Rh8 {[%clk 0:00:07]}  b2 {[%clk 0:00:08]} 63. Rd8+ {[%clk 0:00:01]}  Kc7 {[%clk 0:00:09]} 0-1

[Event "December 12 Late 2023"]
[Site "https://www.chess.com"]
[Date "2023.12.12"]
[Round "1"]
[White "Tari, Aryan"]
[Black "ChessSG1"]
[Result "0-1"]
[Board "43"]
[TimeControl "180+1"]
[WhiteFideId "1510045"]
[WhiteElo "2878"]
[BlackElo "2455"]
[WhiteTeam "NOR"]
[WhiteClock "0:01:51"]
[BlackClock "0:00:07"]

1. Nf3 {[%clk 0:03:00]}  d5 {[%clk 0:02:57]} 2. d4 {[%clk 0:02:59]}  Nf6 {[%clk 0:02:58]} 3. Bf4 {[%clk 0:02:59]}  c5 {[%clk 0:02:56]} 4. e3 {[%clk 0:02:59]}  Nc6 {[%clk 0:02:57]} 5. Nbd2 {[%clk 0:02:58]}  Bg4 {[%clk 0:02:55]} 6. c3 {[%clk 0:02:58]}  e6 {[%clk 0:02:47]} 7. Qb3 {[%clk 0:02:56]}  Qc8 {[%clk 0:02:13]} 8. Ne5 {[%clk 0:02:50]}  Nxe5 {[%clk 0:02:09]} 9. Bxe5 {[%clk 0:02:45]}  c4 {[%clk 0:02:05]} 10. Qa4+ {[%clk 0:02:41]}  Qd7 {[%clk 0:02:02]} 11. Qxd7+ {[%clk 0:02:35]}  Nxd7 {[%clk 0:02:03]} 12. Bg3 {[%clk 0:02:35]}  Rc8 {[%clk 0:01:52]} 13. e4 {[%clk 0:02:34]}  Be7 {[%clk 0:01:46]} 14. f3 {[%clk 0:02:29]}  Bh5 {[%clk 0:01:46]} 15. Bf4 {[%clk 0:02:22]}  O-O {[%clk 0:01:35]} 16. exd5 {[%clk 0:02:22]}  exd5 {[%clk 0:01:32]} 17. h4 {[%clk 0:02:21]}  Bg6 {[%clk 0:01:17]} 18. h5 {[%clk 0:02:20]}  Bf5 {[%clk 0:01:14]} 19. g4 {[%clk 0:02:20]}  Be6 {[%clk 0:01:14]} 20. Kf2 {[%clk 0:02:20]}  h6 {[%clk 0:01:07]} 21. Re1 {[%clk 0:02:20]}  Rc6 {[%clk 0:01:04]} 22. Bh3 {[%clk 0:02:15]}  Ra6 {[%clk 0:00:43]} 23. Kg3 {[%clk 0:02:06]}  Rxa2 {[%clk 0:00:32]} 24. Nxc4 {[%clk 0:02:06]}  dxc4 {[%clk 0:00:27]} 25. d5 {[%clk 0:02:07]}  Bxd5 {[%clk 0:00:16]} 26. Rxe7 {[%clk 0:02:07]}  Nf6 {[%clk 0:00:12]} 27. Be5 {[%clk 0:02:05]}  Rxb2 {[%clk 0:00:10]} 28. Rd1 {[%clk 0:02:04]}  Bc6 {[%clk 0:00:06]} 29. Rd6 {[%clk 0:02:01]}  Nd5 {[%clk 0:00:05]} 30. Rxd5 {[%clk 0:01:55]}  Bxd5 {[%clk 0:00:05]} 31. Bd4 {[%clk 0:01:56]}  Bc6 {[%clk 0:00:04]} 32. Re5 {[%clk 0:01:56]}  Re8 {[%clk 0:00:05]} 33. Ra5 {[%clk 0:01:55]}  a6 {[%clk 0:00:05]} 34. g5 {[%clk 0:01:56]}  Rb5 {[%clk 0:00:04]} 35. Ra1 {[%clk 0:01:54]}  Rxg5+ {[%clk 0:00:04]} 36. Kf2 {[%clk 0:01:55]}  Rxh5 {[%clk 0:00:03]} 37. Bg4 {[%clk 0:01:56]}  Rd5 {[%clk 0:00:03]} 38. Rg1 {[%clk 0:01:55]}  f6 {[%clk 0:00:01]} 39. Bh3 {[%clk 0:01:54]}  Kf7 {[%clk 0:00:01]} 40. Rc1 {[%clk 0:01:55]}  Re7 {[%clk 0:00:01]} 41. Bg4 {[%clk 0:01:56]}  f5 {[%clk 0:00:01]} 42. Bh5+ {[%clk 0:01:56]}  g6 {[%clk 0:00:01]} 43. Rg1 {[%clk 0:01:57]}  gxh5 {[%clk 0:00:02]} 44. Rg7+ {[%clk 0:01:58]}  Ke6 {[%clk 0:00:02]} 45. Rg6+ {[%clk 0:01:58]}  Kd7 {[%clk 0:00:03]} 46. Rxh6 {[%clk 0:01:59]}  Rxd4 {[%clk 0:00:03]} 47. cxd4 {[%clk 0:01:59]}  c3 {[%clk 0:00:04]} 48. Rg6 {[%clk 0:02:00]}  c2 {[%clk 0:00:04]} 49. Rg1 {[%clk 0:02:01]}  Ba4 {[%clk 0:00:04]} 50. Rc1 {[%clk 0:02:01]}  Kc6 {[%clk 0:00:04]} 51. Ra1 {[%clk 0:01:55]}  Kd5 {[%clk 0:00:04]} 52. f4 {[%clk 0:01:56]}  b5 {[%clk 0:00:04]} 53. Kf3 {[%clk 0:01:56]}  Kc4 {[%clk 0:00:04]} 54. d5 {[%clk 0:01:56]}  Kxd5 {[%clk 0:00:04]} 55. Kf2 {[%clk 0:01:55]}  Kd4 {[%clk 0:00:05]} 56. Kf3 {[%clk 0:01:53]}  Kd3 {[%clk 0:00:05]} 57. Kg3 {[%clk 0:01:54]}  Kd2 {[%clk 0:00:06]} 58. Ra2 {[%clk 0:01:53]}  Kd1 {[%clk 0:00:06]} 59. Ra1+ {[%clk 0:01:51]}  c1=Q {[%clk 0:00:07]} 0-1

[Event "December 12 Late 2023"]
[Site "https://www.chess.com"]
[Date "2023.12.12"]
[Round "1"]
[White "Popov, Konstantin"]
[Black "Weisz, Bryan"]
[Result "1-0"]
[Board "45"]
[TimeControl "180+1"]
[WhiteFideId "34137910"]
[BlackFideId "30934133"]
[WhiteElo "2870"]
[BlackElo "2452"]
[WhiteTeam "FID"]
[BlackTeam "USA"]
[WhiteClock "0:00:58"]
[BlackClock "0:00:11"]

1. e4 {[%clk 0:03:00]}  c5 {[%clk 0:03:00]} 2. Nf3 {[%clk 0:03:00]}  Nf6 {[%clk 0:02:59]} 3. Nc3 {[%clk 0:02:58]}  d5 {[%clk 0:02:59]} 4. exd5 {[%clk 0:02:59]}  Nxd5 {[%clk 0:02:59]} 5. Bb5+ {[%clk 0:02:59]}  Nc6 {[%clk 0:03:00]} 6. Ne5 {[%clk 0:02:51]}  Qd6 {[%clk 0:02:57]} 7. Nc4 {[%clk 0:02:46]}  Qe6+ {[%clk 0:02:29]} 8. Qe2 {[%clk 0:02:45]}  Nf4 {[%clk 0:02:18]} 9. Qxe6 {[%clk 0:02:43]}  Bxe6 {[%clk 0:02:18]} 10. g3 {[%clk 0:02:39]}  Nd5 {[%clk 0:02:09]} 11. d3 {[%clk 0:02:35]}  Nb4 {[%clk 0:02:08]} 12. Kd1 {[%clk 0:02:09]}  Bg4+ {[%clk 0:01:49]} 13. Kd2 {[%clk 0:02:09]}  a6 {[%clk 0:01:44]} 14. Bxc6+ {[%clk 0:02:07]}  Nxc6 {[%clk 0:01:45]} 15. a4 {[%clk 0:02:04]}  Nd4 {[%clk 0:01:40]} 16. h3 {[%clk 0:01:57]}  Be6 {[%clk 0:01:36]} 17. b3 {[%clk 0:01:48]}  g6 {[%clk 0:01:35]} 18. Bb2 {[%clk 0:01:47]}  Bh6+ {[%clk 0:01:23]} 19. Ne3 {[%clk 0:01:46]}  O-O-O {[%clk 0:01:20]} 20. Ne4 {[%clk 0:01:44]}  f5 {[%clk 0:01:15]} 21. Nxc5 {[%clk 0:01:43]}  Bf7 {[%clk 0:01:09]} 22. a5 {[%clk 0:01:43]}  e5 {[%clk 0:01:02]} 23. Ra4 {[%clk 0:01:36]}  Bf8 {[%clk 0:00:52]} 24. b4 {[%clk 0:01:27]}  Be8 {[%clk 0:00:50]} 25. Raa1 {[%clk 0:01:25]}  Bc6 {[%clk 0:00:42]} 26. Rhd1 {[%clk 0:01:21]}  f4 {[%clk 0:00:38]} 27. Nc4 {[%clk 0:01:20]}  fxg3 {[%clk 0:00:36]} 28. fxg3 {[%clk 0:01:14]}  Bh6+ {[%clk 0:00:36]} 29. Kc3 {[%clk 0:01:14]}  Rhf8 {[%clk 0:00:30]} 30. Rf1 {[%clk 0:01:11]}  Bf3 {[%clk 0:00:17]} 31. Nxe5 {[%clk 0:01:02]}  Bg2 {[%clk 0:00:18]} 32. Rxf8 {[%clk 0:01:00]}  Rxf8 {[%clk 0:00:18]} 33. Kxd4 {[%clk 0:01:00]}  Bg7 {[%clk 0:00:19]} 34. Kc4 {[%clk 0:00:59]}  Rf2 {[%clk 0:00:19]} 35. Kb3 {[%clk 0:00:59]}  Bd5+ {[%clk 0:00:19]} 36. Nc4 {[%clk 0:01:00]}  Bf8 {[%clk 0:00:17]} 37. Re1 {[%clk 0:00:58]}  Rg2 {[%clk 0:00:14]} 38. Re8+ {[%clk 0:00:57]}  Kc7 {[%clk 0:00:14]} 39. Rxf8 {[%clk 0:00:58]}  Rxg3 {[%clk 0:00:11]} 40. Be5+ {[%clk 0:00:58]} 1-0